[Event "9th HDBank Open 2019"]
[Site "Ho Chi Minh City"]
[Date "2019.03.08"]
[Round "3.3"]
[White "Bogdanovich, Stanislav"]
[Black "Setyaki, Azarya Jodi"]
[Result "1-0"]
[ECO "E94"]
[WhiteElo "2536"]
[BlackElo "2378"]
[Annotator "RC"]
[PlyCount "85"]
[EventDate "2019.03.07"]
[EventType "swiss"]
[EventCountry "VIE"]
[SourceTitle "playchess.com"]
[Source "ChessBase"]
[SourceQuality "1"]
[TimeControl "5400+30"]

1. c4 {[%emt 0:00:45]} g6 {[%emt 0:04:35]} 2. d4 {[%emt 0:00:48]} Nf6 {[%emt 0:00:13]} 3. Nc3 {[%emt 0:00:32]} d6 {[%emt 0:01:05]} 4. e4 {[%emt 0:00:56]} Nbd7 {[%emt 0:01:06]} 5. Nf3 {[%emt 0:02:10]} e5 {[%emt 0:00:20]} 6. Be2 {[%emt 0:01:32]} Bg7 {[%emt 0:00:16]} 7. O-O {[%emt 0:00:10]} O-O {[%emt 0:00:07]} 8. Be3 {[%emt 0:01:41]} c6 {[%emt 0:02:54]} 9. d5 {[%emt 0:04:42]} c5 {[%emt 0:00:41]} 10. Ne1 {[%emt 0:05:17]} Ne8 {[%emt 0:02:28]} 11. Nd3 {[%emt 0:01:20]} f5 {[%emt 0:00:52]} 12. exf5 {[%emt 0:01:50]} gxf5 {[%emt 0:02:05]} 13. f4 {[%emt 0:00:21]} Qe7 {[%emt 0:11:56]} 14. fxe5 {[%emt 0:06:21]} Nxe5 {[%emt 0:09:45]} 15. Nxe5 {[%emt 0:00:47]} Bxe5 {[%emt 0:01:41]} 16. Qd2 {[%emt 0:07:17]} Nf6 {[%emt 0:04:30]} 17. Bf4 {[%emt 0:01:33]} Bd7 {[%emt 0:01:24]} 18. Rae1 {[%emt 0:08:20]} Rae8 {[%emt 0:06:34]} 19. Bf3 {[%emt 0:08:53]} Bxf4 {[%emt 0:07:05]} 20. Qxf4 {[%emt 0:00:16]} Qxe1 {[%emt 0:00:21]} 21. Rxe1 {[%emt 0:00:13]} Rxe1+ {[%emt 0:00:06]} 22. Kf2 {[%emt 0:00:07]} Re5 {[%emt 0:00:14]} 23. Qg5+ {[%emt 0:02:50]} Kh8 {[%emt 0:04:34]} 24. Qh6 {[%emt 0:00:05]} Kg8 {[%emt 0:01:52]} 25. Qg5+ {[%emt 0:01:28]} Kh8 {[%emt 0:00:41]} 26. Qh6 {[%emt 0:00:03]} Kg8 {[%emt 0:00:11]} 27. h3 {[%emt 0:00:06]} Be8 {[%emt 0:18:04]} 28. Ne2 {[%emt 0:02:04]} b5 {[%emt 0:06:21]} 29. b3 {[%emt 0:04:30]} bxc4 {[%emt 0:00:14]} 30. bxc4 {[%emt 0:00:03]} Bd7 {[%emt 0:08:32]} 31. Nf4 {[%emt 0:01:32]} Re7 {[%emt 0:00:33]} 32. Kg3 {[%emt 0:06:22]} Rg7+ {[%emt 0:00:31]} 33. Kh2 {[%emt 0:02:33]} Rgf7 {[%emt 0:00:21]} 34. Ne6 {[%emt 0:06:47]} Bxe6 {[%emt 0:00:45]} 35. dxe6 {[%emt 0:00:03]} Rg7 {[%emt 0:02:27]} 36. Qf4 {[%emt 0:03:28]} Ne8 {[%emt 0:00:03]} 37. Bh5 {[%emt 0:02:25]} Nf6 {[%emt 0:00:59]} 38. Bf7+ {[%emt 0:00:26]} Rgxf7 {[%emt 0:01:23]} 39. exf7+ {[%emt 0:00:03]} Rxf7 {[%emt 0:00:09]} 40. Qg3+ {[%emt 0:00:58]} Kh8 {[%emt 0:00:41]} 41. Qxd6 {[%emt 0:00:06]} Ne4 {[%emt 0:00:07]} 42. Qe5+ {[%emt 0:00:17]} Kg8 {[%emt 0:00:02]} 43. g4 {[%emt 0:00:47]} 1-0

[Event "9th HDBank Open 2019"]
[Site "Ho Chi Minh City"]
[Date "2019.03.08"]
[Round "3.5"]
[White "Gukesh D"]
[Black "Pham, Le Thao Nguyen"]
[Result "1-0"]
[ECO "A05"]
[WhiteElo "2529"]
[BlackElo "2374"]
[Annotator "RC"]
[PlyCount "75"]
[EventDate "2019.03.07"]
[EventType "swiss"]
[EventCountry "VIE"]
[SourceTitle "playchess.com"]
[Source "ChessBase"]
[SourceQuality "1"]
[TimeControl "5400+30"]

1. Nf3 {[%emt 0:00:00]} Nf6 {[%emt 0:00:24]} 2. g3 {[%emt 0:00:00]} d5 {[%emt 0:00:24]} 3. Bg2 {[%emt 0:00:06]} c6 {[%emt 0:00:56]} 4. O-O {[%emt 0:00:16]} Bf5 {[%emt 0:00:41]} 5. d3 {[%emt 0:00:10]} e6 {[%emt 0:00:22]} 6. Nfd2 {[%emt 0:02:10]} Bc5 {[%emt 0:02:13]} 7. e4 {[%emt 0:02:20]} dxe4 {[%emt 0:03:44]} 8. dxe4 {[%emt 0:00:09]} Bg4 {[%emt 0:00:36]} 9. Qe1 {[%emt 0:00:44]} e5 {[%emt 0:01:54]} 10. h3 {[%emt 0:03:59]} Be6 {[%emt 0:05:32]} 11. Qe2 {[%emt 0:04:38]} Qc7 {[%emt 0:06:26]} 12. Kh1 {[%emt 0:10:33]} Nfd7 {[%emt 0:06:59]} 13. f4 {[%emt 0:01:34]} f6 {[%emt 0:04:32]} 14. Nc3 {[%emt 0:02:00]} Na6 {[%emt 0:05:46]} 15. a3 {[%emt 0:05:08]} O-O {[%emt 0:06:00]} 16. Nf3 {[%emt 0:03:35]} exf4 {[%emt 0:11:58]} 17. gxf4 {[%emt 0:00:14]} Rae8 {[%emt 0:01:03]} 18. b4 {[%emt 0:08:40]} Bb6 {[%emt 0:03:23]} 19. Na4 {[%emt 0:00:55]} Qc8 {[%emt 0:01:53]} 20. c4 {[%emt 0:03:57]} c5 {[%emt 0:02:36]} 21. b5 {[%emt 0:01:00]} Nc7 {[%emt 0:04:21]} 22. Be3 {[%emt 0:15:03]} Re7 {[%emt 0:02:09]} 23. Rad1 {[%emt 0:06:40]} Rfe8 {[%emt 0:04:05]} 24. Nh4 {[%emt 0:00:33]} g6 {[%emt 0:10:44]} 25. f5 {[%emt 0:11:03]} Bf7 {[%emt 0:01:44]} 26. fxg6 {[%emt 0:00:31]} hxg6 {[%emt 0:00:05]} 27. Nxb6 {[%emt 0:01:49]} axb6 {[%emt 0:01:31]} 28. Qg4 {[%emt 0:03:48]} Ne5 {[%emt 0:02:17]} 29. Qg3 {[%emt 0:00:32]} Re6 {[%emt 0:01:30]} 30. Bf4 {[%emt 0:02:01]} Rd8 {[%emt 0:01:19]} 31. Rxd8+ {[%emt 0:03:52]} Qxd8 {[%emt 0:00:01]} 32. Nf5 {[%emt 0:00:34]} Be8 {[%emt 0:05:21]} 33. Nh6+ {[%emt 0:00:55]} Kg7 {[%emt 0:00:37]} 34. Ng4 {[%emt 0:00:05]} Qe7 {[%emt 0:02:04]} 35. Nxf6 {[%emt 0:02:36]} Nxc4 {[%emt 0:00:18]} 36. Bh6+ {[%emt 0:00:29]} Kh8 {[%emt 0:01:27]} 37. Qh4 {[%emt 0:00:20]} Rxf6 {[%emt 0:00:16]} 38. Rxf6 {[%emt 0:00:46]} 1-0

[Event "9th HDBank Open 2019"]
[Site "Ho Chi Minh City"]
[Date "2019.03.08"]
[Round "3.6"]
[White "Cao, Sang"]
[Black "Xu, Yi"]
[Result "1/2-1/2"]
[ECO "B31"]
[WhiteElo "2385"]
[BlackElo "2520"]
[Annotator "RC"]
[PlyCount "77"]
[EventDate "2019.03.07"]
[EventType "swiss"]
[EventCountry "VIE"]
[SourceTitle "playchess.com"]
[Source "ChessBase"]
[SourceQuality "1"]
[TimeControl "5400+30"]

1. e4 {[%emt 0:00:00]} c5 {[%emt 0:00:00]} 2. Nf3 {[%emt 0:00:36]} Nc6 {[%emt 0:00:00]} 3. Bb5 {[%emt 0:00:26]} g6 {[%emt 0:00:00]} 4. O-O {[%emt 0:00:25]} Bg7 {[%emt 0:00:00]} 5. Bxc6 {[%emt 0:00:40]} dxc6 {[%emt 0:00:35]} 6. h3 {[%emt 0:03:00]} Nf6 {[%emt 0:00:32]} 7. Nc3 {[%emt 0:00:42]} Nd7 {[%emt 0:03:21]} 8. d3 {[%emt 0:00:51]} e5 {[%emt 0:11:56]} 9. Be3 {[%emt 0:04:35]} b6 {[%emt 0:00:10]} 10. Qd2 {[%emt 0:07:22]} h6 {[%emt 0:00:06]} 11. Nh2 {[%emt 0:00:38]} Nf8 {[%emt 0:00:10]} 12. f4 {[%emt 0:00:23]} exf4 {[%emt 0:00:10]} 13. Rxf4 {[%emt 0:00:19]} Be6 {[%emt 0:08:18]} 14. Raf1 {[%emt 0:02:05]} Nd7 {[%emt 0:00:45]} 15. R4f2 {[%emt 0:00:23]} Ne5 {[%emt 0:04:36]} 16. Nf3 {[%emt 0:02:36]} g5 {[%emt 0:06:49]} 17. Ne2 {[%emt 0:01:32]} Qd6 {[%emt 0:13:13]} 18. Qc1 {[%emt 0:02:31]} O-O-O {[%emt 0:04:43]} 19. Bd2 {[%emt 0:01:50]} c4 {[%emt 0:07:46]} 20. Nxe5 {[%emt 0:02:10]} Bxe5 {[%emt 0:01:49]} 21. Bc3 {[%emt 0:00:12]} Bxc3 {[%emt 0:01:29]} 22. Nxc3 {[%emt 0:00:20]} cxd3 {[%emt 0:01:48]} 23. Rd1 {[%emt 0:00:16]} d2 {[%emt 0:06:51]} 24. Rdxd2 {[%emt 0:06:43]} Qc5 {[%emt 0:01:06]} 25. Rxd8+ {[%emt 0:00:19]} Rxd8 {[%emt 0:00:15]} 26. Qe1 {[%emt 0:00:56]} Qe5 {[%emt 0:01:56]} 27. Rd2 {[%emt 0:03:11]} Qc5+ {[%emt 0:06:46]} 28. Kh2 {[%emt 0:04:16]} Rxd2 {[%emt 0:00:54]} 29. Qxd2 {[%emt 0:00:06]} Kc7 {[%emt 0:00:16]} 30. Kh1 {[%emt 0:02:58]} Qe5 {[%emt 0:08:07]} 31. a4 {[%emt 0:06:52]} h5 {[%emt 0:02:33]} 32. Qf2 {[%emt 0:02:57]} Kb7 {[%emt 0:01:47]} 33. Kg1 {[%emt 0:03:43]} g4 {[%emt 0:00:46]} 34. hxg4 {[%emt 0:01:01]} hxg4 {[%emt 0:00:07]} 35. g3 {[%emt 0:00:10]} f5 {[%emt 0:01:40]} 36. Qf4 {[%emt 0:03:24]} Qd4+ {[%emt 0:03:17]} 37. Qf2 {[%emt 0:00:13]} Qe5 {[%emt 0:00:49]} 38. Qf4 {[%emt 0:00:04]} Qd4+ {[%emt 0:01:09]} 39. Qf2 {[%emt 0:00:05]} 1/2-1/2

[Event "9th HDBank Open 2019"]
[Site "Ho Chi Minh City"]
[Date "2019.03.08"]
[Round "3.7"]
[White "Chu, Wei Chao"]
[Black "Karthik Venkataraman"]
[Result "1/2-1/2"]
[ECO "A62"]
[WhiteElo "2373"]
[BlackElo "2494"]
[Annotator "ChessBase"]
[PlyCount "160"]
[EventDate "2019.03.07"]
[EventType "swiss"]
[EventCountry "VIE"]
[SourceTitle "playchess.com"]
[Source "ChessBase"]
[SourceQuality "1"]
[TimeControl "5400+30"]

1. d4 {[%emt 0:00:00]} Nf6 {[%emt 0:05:32]} 2. c4 {[%emt 0:00:00]} e6 {[%emt 0:00:15]} 3. g3 {[%emt 0:00:00]} c5 {[%emt 0:00:17]} 4. d5 {[%emt 0:00:04]} exd5 {[%emt 0:00:04]} 5. cxd5 {[%emt 0:00:05]} d6 {[%emt 0:00:04]} 6. Nc3 {[%emt 0:00:07]} g6 {[%emt 0:00:04]} 7. Bg2 {[%emt 0:00:05]} Bg7 {[%emt 0:00:04]} 8. Nf3 {[%emt 0:00:06]} O-O {[%emt 0:00:04]} 9. O-O {[%emt 0:00:05]} Re8 {[%emt 0:00:04]} 10. Re1 {[%emt 0:00:42]} Na6 {[%emt 0:00:05]} 11. Nd2 {[%emt 0:01:44]} Nc7 {[%emt 0:00:07]} 12. Nc4 {[%emt 0:00:41]} b5 {[%emt 0:00:38]} 13. Nxd6 {[%emt 0:00:08]} Qxd6 {[%emt 0:12:04]} 14. Bf4 {[%emt 0:00:09]} Qb6 {[%emt 0:03:46]} 15. d6 {[%emt 0:00:05]} Bb7 {[%emt 0:00:07]} 16. Bxb7 {[%emt 0:09:16]} Qxb7 {[%emt 0:00:17]} 17. dxc7 {[%emt 0:00:06]} b4 {[%emt 0:00:42]} 18. Na4 {[%emt 0:00:05]} Nd5 {[%emt 0:00:11]} 19. Bd6 {[%emt 0:18:33]} Nxc7 {[%emt 0:00:07]} 20. Nxc5 {[%emt 0:01:20]} Qc6 {[%emt 0:00:10]} 21. Bxc7 {[%emt 0:00:55]} Qxc5 {[%emt 0:00:04]} 22. Rc1 {[%emt 0:02:54]} Qb5 {[%emt 0:00:04]} 23. Qd2 {[%emt 0:04:05]} Re6 {[%emt 0:00:33]} 24. a3 {[%emt 0:06:24]} bxa3 {[%emt 0:12:41]} 25. bxa3 {[%emt 0:00:02]} Rae8 {[%emt 0:00:05]} 26. e3 {[%emt 0:02:28]} Bf8 {[%emt 0:07:00]} 27. a4 {[%emt 0:24:57]} Qxa4 {[%emt 0:00:12]} 28. Ra1 {[%emt 0:00:04]} Qc6 {[%emt 0:04:45]} 29. Rec1 {[%emt 0:02:05]} Qa8 {[%emt 0:00:17]} 30. Ba5 {[%emt 0:03:15]} Bg7 {[%emt 0:00:26]} 31. Bc3 {[%emt 0:00:22]} Bxc3 {[%emt 0:02:19]} 32. Rxc3 {[%emt 0:01:13]} a6 {[%emt 0:00:22]} 33. Rd3 {[%emt 0:04:38]} h5 {[%emt 0:04:56]} 34. h4 {[%emt 0:00:32]} Rc6 {[%emt 0:01:52]} 35. Rd7 {[%emt 0:02:12]} Rec8 {[%emt 0:01:21]} 36. Rd1 {[%emt 0:01:04]} Rc2 {[%emt 0:00:56]} 37. Qxc2 {[%emt 0:03:58]} Rxc2 {[%emt 0:00:05]} 38. Rd8+ {[%emt 0:00:03]} Qxd8 {[%emt 0:00:05]} 39. Rxd8+ {[%emt 0:00:02]} Kg7 {[%emt 0:00:05]} 40. Rd6 {[%emt 0:00:03]} a5 {[%emt 0:02:11]} 41. Ra6 {[%emt 0:01:06]} Ra2 {[%emt 0:00:13]} 42. Kg2 {[%emt 0:00:04]} a4 {[%emt 0:00:14]} 43. e4 {[%emt 0:00:09]} a3 {[%emt 0:00:16]} 44. Kf3 {[%emt 0:00:58]} Kf8 {[%emt 0:00:07]} 45. Ra7 {[%emt 0:00:04]} Ke8 {[%emt 0:00:06]} 46. e5 {[%emt 0:00:56]} Ra1 {[%emt 0:00:21]} 47. Kf4 {[%emt 0:02:04]} a2 {[%emt 0:01:07]} 48. Kg5 {[%emt 0:02:20]} Re1 {[%emt 0:00:09]} 49. Rxa2 {[%emt 0:00:03]} Rxe5+ {[%emt 0:00:04]} 50. Kf6 {[%emt 0:02:03]} Rf5+ {[%emt 0:00:11]} 51. Kg7 {[%emt 0:00:05]} Rf3 {[%emt 0:00:19]} 52. Re2+ {[%emt 0:00:17]} Kd7 {[%emt 0:00:06]} 53. Kf8 {[%emt 0:00:17]} Kd6 {[%emt 0:01:56]} 54. Kg7 {[%emt 0:02:40]} Kd7 {[%emt 0:01:48]} 55. Kg8 {[%emt 0:00:04]} Kd6 {[%emt 0:00:17]} 56. Kh7 {[%emt 0:03:20]} Kd7 {[%emt 0:02:49]} 57. Kh6 {[%emt 0:00:37]} Kd6 {[%emt 0:00:20]} 58. Kg7 {[%emt 0:01:15]} Kd5 {[%emt 0:02:05]} 59. Re7 {[%emt 0:01:14]} f5 {[%emt 0:13:25]} 60. Kxg6 {[%emt 0:00:08]} Rxf2 {[%emt 0:00:04]} 61. Kxh5 {[%emt 0:00:46]} Rf3 {[%emt 0:00:26]} 62. Rg7 {[%emt 0:00:18]} Ke6 {[%emt 0:00:18]} 63. Kh6 {[%emt 0:01:49]} Kf6 {[%emt 0:00:19]} 64. h5 {[%emt 0:00:28]} Ra3 {[%emt 0:00:06]} 65. Rg6+ {[%emt 0:00:05]} Kf7 {[%emt 0:00:05]} 66. Rg7+ {[%emt 0:01:08]} Kf6 {[%emt 0:00:04]} 67. Rg6+ {[%emt 0:00:09]} Kf7 {[%emt 0:00:05]} 68. Kh7 {[%emt 0:00:03]} Rb3 {[%emt 0:00:03]} 69. Rg7+ {[%emt 0:00:13]} Kf6 {[%emt 0:00:06]} 70. Rg6+ {[%emt 0:00:02]} Kf7 {[%emt 0:00:05]} 71. h6 {[%emt 0:02:13]} Ra3 {[%emt 0:00:18]} 72. Rg7+ {[%emt 0:00:05]} Kf6 {[%emt 0:00:05]} 73. Rg6+ {[%emt 0:03:10]} Kf7 {[%emt 0:00:05]} 74. Rg7+ {[%emt 0:00:21]} Kf6 {[%emt 0:00:06]} 75. Kh8 {[%emt 0:00:02]} Rb3 {[%emt 0:00:21]} 76. h7 {[%emt 0:00:09]} Ra3 {[%emt 0:00:46]} 77. g4 {[%emt 0:00:26]} fxg4 {[%emt 0:00:14]} 78. Rxg4 {[%emt 0:00:04]} Ra8+ {[%emt 0:02:36]} 79. Rg8 {[%emt 0:00:08]} Ra7 {[%emt 0:00:11]} 80. Rb8 {[%emt 0:00:11]} Kg6 {[%emt 0:00:55]} 1/2-1/2

[Event "9th HDBank Open 2019"]
[Site "Ho Chi Minh City"]
[Date "2019.03.08"]
[Round "3.12"]
[White "Nguyen, Ngoc Truong Son"]
[Black "Nava, Roderick"]
[Result "1-0"]
[ECO "A43"]
[WhiteElo "2647"]
[BlackElo "2393"]
[Annotator "RC"]
[PlyCount "61"]
[EventDate "2019.03.07"]
[EventType "swiss"]
[EventCountry "VIE"]
[SourceTitle "playchess.com"]
[Source "ChessBase"]
[SourceQuality "1"]
[TimeControl "5400+30"]

1. d4 {[%emt 0:00:00]} c5 {[%emt 0:08:15]} 2. d5 {[%emt 0:00:03]} g6 {[%emt 0:00:21]} 3. Nf3 {[%emt 0:02:27]} Bg7 {[%emt 0:00:42]} 4. e4 {[%emt 0:00:48]} d6 {[%emt 0:02:01]} 5. Be2 {[%emt 0:02:26]} Nf6 {[%emt 0:01:23]} 6. Nc3 {[%emt 0:00:18]} O-O {[%emt 0:00:27]} 7. O-O {[%emt 0:00:19]} Bg4 {[%emt 0:00:56]} 8. Nd2 {[%emt 0:03:24]} Bxe2 {[%emt 0:00:29]} 9. Qxe2 {[%emt 0:00:06]} Na6 {[%emt 0:03:50]} 10. Nc4 {[%emt 0:02:28]} Nd7 {[%emt 0:03:25]} 11. Bf4 {[%emt 0:03:08]} Nc7 {[%emt 0:06:00]} 12. a4 {[%emt 0:03:36]} Ne5 {[%emt 0:06:53]} 13. Nxe5 {[%emt 0:05:56]} dxe5 {[%emt 0:00:07]} 14. Be3 {[%emt 0:00:22]} b6 {[%emt 0:00:07]} 15. a5 {[%emt 0:02:25]} f5 {[%emt 0:12:15]} 16. Qc4 {[%emt 0:03:12]} Qd6 {[%emt 0:02:48]} 17. f3 {[%emt 0:02:57]} Kh8 {[%emt 0:05:05]} 18. axb6 {[%emt 0:08:50]} axb6 {[%emt 0:00:08]} 19. Nb5 {[%emt 0:00:27]} Nxb5 {[%emt 0:05:57]} 20. Qxb5 {[%emt 0:00:11]} f4 {[%emt 0:01:28]} 21. Bf2 {[%emt 0:02:11]} g5 {[%emt 0:00:05]} 22. Ra3 {[%emt 0:11:26]} h5 {[%emt 0:08:22]} 23. Rfa1 {[%emt 0:01:11]} Rxa3 {[%emt 0:00:42]} 24. Rxa3 {[%emt 0:00:45]} g4 {[%emt 0:13:33]} 25. Ra6 {[%emt 0:02:05]} Qg6 {[%emt 0:01:10]} 26. Rxb6 {[%emt 0:06:34]} Bf6 {[%emt 0:00:11]} 27. Kh1 {[%emt 0:01:37]} Rg8 {[%emt 0:10:22]} 28. Rb8 {[%emt 0:00:46]} Rxb8 {[%emt 0:01:11]} 29. Qxb8+ {[%emt 0:00:20]} Kg7 {[%emt 0:00:06]} 30. Bxc5 {[%emt 0:00:50]} h4 {[%emt 0:00:20]} 31. Qc8 {[%emt 0:00:09]} 1-0

[Event "9th HDBank Open 2019"]
[Site "Ho Chi Minh City"]
[Date "2019.03.08"]
[Round "3.16"]
[White "Krishna Teja, N."]
[Black "Megaranto, Susanto"]
[Result "0-1"]
[ECO "A52"]
[WhiteElo "2370"]
[BlackElo "2526"]
[Annotator "RC"]
[PlyCount "132"]
[EventDate "2019.03.07"]
[EventType "swiss"]
[EventCountry "VIE"]
[SourceTitle "playchess.com"]
[Source "ChessBase"]
[SourceQuality "1"]
[TimeControl "5400+30"]

1. d4 {[%emt 0:04:57]} Nf6 {[%emt 0:00:00]} 2. c4 {[%emt 0:00:13]} e5 {[%emt 0:00:18]} 3. dxe5 {[%emt 0:00:13]} Ng4 {[%emt 0:00:09]} 4. Bf4 {[%emt 0:00:51]} Bb4+ {[%emt 0:00:08]} 5. Nd2 {[%emt 0:00:56]} d6 {[%emt 0:00:04]} 6. a3 {[%emt 0:05:58]} dxe5 {[%emt 0:05:47]} 7. Bg3 {[%emt 0:00:06]} Bxd2+ {[%emt 0:00:38]} 8. Qxd2 {[%emt 0:00:02]} Qxd2+ {[%emt 0:00:20]} 9. Kxd2 {[%emt 0:00:04]} f6 {[%emt 0:01:44]} 10. e3 {[%emt 0:02:27]} Be6 {[%emt 0:02:01]} 11. Kc3 {[%emt 0:08:26]} h5 {[%emt 0:05:24]} 12. h3 {[%emt 0:04:06]} Nh6 {[%emt 0:00:05]} 13. Bd3 {[%emt 0:00:13]} Nd7 {[%emt 0:04:34]} 14. Ne2 {[%emt 0:04:38]} Nc5 {[%emt 0:03:30]} 15. Rhd1 {[%emt 0:03:27]} Bf5 {[%emt 0:01:27]} 16. Bc2 {[%emt 0:07:42]} Bxc2 {[%emt 0:07:47]} 17. Kxc2 {[%emt 0:00:08]} Nf5 {[%emt 0:00:34]} 18. Bh2 {[%emt 0:02:46]} Rh6 {[%emt 0:09:43]} 19. b4 {[%emt 0:11:06]} Ne4 {[%emt 0:01:45]} 20. Nc3 {[%emt 0:07:03]} Nxc3 {[%emt 0:09:18]} 21. Kxc3 {[%emt 0:00:20]} Rg6 {[%emt 0:01:46]} 22. g3 {[%emt 0:04:50]} Nd6 {[%emt 0:04:36]} 23. f3 {[%emt 0:00:25]} Nf5 {[%emt 0:04:20]} 24. g4 {[%emt 0:00:13]} hxg4 {[%emt 0:02:40]} 25. hxg4 {[%emt 0:00:11]} Ne7 {[%emt 0:06:29]} 26. e4 {[%emt 0:03:11]} Rh6 {[%emt 0:04:46]} 27. Bg3 {[%emt 0:01:38]} Kf7 {[%emt 0:00:34]} 28. Rd7 {[%emt 0:07:24]} Rh3 {[%emt 0:00:55]} 29. Rg1 {[%emt 0:00:03]} Rc8 {[%emt 0:00:12]} 30. b5 {[%emt 0:00:19]} Ke6 {[%emt 0:04:13]} 31. Rd3 {[%emt 0:00:02]} g5 {[%emt 0:00:53]} 32. a4 {[%emt 0:00:49]} b6 {[%emt 0:01:29]} 33. Kb4 {[%emt 0:03:54]} c6 {[%emt 0:01:36]} 34. Kb3 {[%emt 0:00:19]} Rc7 {[%emt 0:00:41]} 35. Rg2 {[%emt 0:02:30]} Nc8 {[%emt 0:02:37]} 36. Be1 {[%emt 0:01:35]} Rd7 {[%emt 0:01:37]} 37. Rgd2 {[%emt 0:01:12]} Rxd3+ {[%emt 0:00:17]} 38. Rxd3 {[%emt 0:00:02]} c5 {[%emt 0:00:32]} 39. Kc3 {[%emt 0:03:24]} Nd6 {[%emt 0:00:45]} 40. Bd2 {[%emt 0:00:25]} Ke7 {[%emt 0:00:44]} 41. Re3 {[%emt 0:00:42]} Rh2 {[%emt 0:01:35]} 42. Rd3 {[%emt 0:01:34]} Rf2 {[%emt 0:01:12]} 43. a5 {[%emt 0:03:35]} Kd7 {[%emt 0:03:28]} 44. a6 {[%emt 0:00:39]} Kc7 {[%emt 0:01:11]} 45. Be1 {[%emt 0:01:42]} Re2 {[%emt 0:01:12]} 46. Bd2 {[%emt 0:00:23]} Rh2 {[%emt 0:00:11]} 47. Bc1 {[%emt 0:00:48]} Rh3 {[%emt 0:00:56]} 48. Re3 {[%emt 0:00:29]} Ne8 {[%emt 0:00:28]} 49. Kd3 {[%emt 0:03:28]} Ng7 {[%emt 0:02:01]} 50. Bd2 {[%emt 0:00:13]} Ne6 {[%emt 0:00:16]} 51. Ke2 {[%emt 0:01:15]} Nd4+ {[%emt 0:00:31]} 52. Kd1 {[%emt 0:00:05]} Rxf3 {[%emt 0:02:21]} 53. Rxf3 {[%emt 0:00:38]} Nxf3 {[%emt 0:00:05]} 54. Ke2 {[%emt 0:00:04]} Nh2 {[%emt 0:00:08]} 55. Be1 {[%emt 0:00:18]} Nxg4 {[%emt 0:00:12]} 56. Kf3 {[%emt 0:00:38]} Nh6 {[%emt 0:00:05]} 57. Ke3 {[%emt 0:00:24]} Nf7 {[%emt 0:00:25]} 58. Kd3 {[%emt 0:00:06]} Nd8 {[%emt 0:02:02]} 59. Ke3 {[%emt 0:00:16]} Kd7 {[%emt 0:01:39]} 60. Kf3 {[%emt 0:00:17]} Nf7 {[%emt 0:01:34]} 61. Ke3 {[%emt 0:00:02]} Nd8 {[%emt 0:00:38]} 62. Kf3 {[%emt 0:00:08]} Ne6 {[%emt 0:00:13]} 63. Kg4 {[%emt 0:00:30]} Nd4 {[%emt 0:00:03]} 64. Bc3 {[%emt 0:00:12]} Nc2 {[%emt 0:00:46]} 65. Kf5 {[%emt 0:00:19]} Ke7 {[%emt 0:00:04]} 66. Bxe5 {[%emt 0:00:36]} Ne3+ {[%emt 0:00:14]} 0-1

[Event "9th HDBank Open 2019"]
[Site "Ho Chi Minh City"]
[Date "2019.03.08"]
[Round "3.17"]
[White "Fenil, Shah"]
[Black "Nguyen, Anh Khoi"]
[Result "0-1"]
[ECO "B22"]
[WhiteElo "2360"]
[BlackElo "2484"]
[Annotator "RC"]
[PlyCount "65"]
[EventDate "2019.03.07"]
[EventType "swiss"]
[EventCountry "VIE"]
[SourceTitle "playchess.com"]
[Source "ChessBase"]
[SourceQuality "1"]
[TimeControl "5400+30"]

1. e4 {[%emt 0:00:00]} c5 {[%emt 0:00:00]} 2. c3 {[%emt 0:00:00]} d5 {[%emt 0:00:06]} 3. exd5 {[%emt 0:00:00]} Qxd5 {[%emt 0:00:06]} 4. d4 {[%emt 0:00:00]} g6 {[%emt 0:00:19]} 5. Nf3 {[%emt 0:01:26]} Bg7 {[%emt 0:00:10]} 6. Na3 {[%emt 0:02:51]} cxd4 {[%emt 0:00:17]} 7. Bc4 {[%emt 0:00:57]} Qe4+ {[%emt 0:00:31]} 8. Be3 {[%emt 0:00:07]} Nh6 {[%emt 0:00:12]} 9. Nb5 {[%emt 0:01:51]} O-O {[%emt 0:00:59]} 10. cxd4 {[%emt 0:03:46]} Nc6 {[%emt 0:01:25]} 11. Nc3 {[%emt 0:04:27]} Qf5 {[%emt 0:00:22]} 12. h3 {[%emt 0:11:39]} Qa5 {[%emt 0:10:53]} 13. O-O {[%emt 0:07:33]} Nf5 {[%emt 0:03:39]} 14. a3 {[%emt 0:05:55]} Qd8 {[%emt 0:14:57]} 15. Ne2 {[%emt 0:07:11]} b6 {[%emt 0:00:52]} 16. Rc1 {[%emt 0:12:43]} Bb7 {[%emt 0:00:51]} 17. b4 {[%emt 0:00:44]} e6 {[%emt 0:09:47]} 18. d5 {[%emt 0:12:41]} exd5 {[%emt 0:12:15]} 19. Bxd5 {[%emt 0:00:34]} Nxe3 {[%emt 0:02:44]} 20. fxe3 {[%emt 0:00:01]} Rc8 {[%emt 0:00:32]} 21. e4 {[%emt 0:01:31]} b5 {[%emt 0:09:33]} 22. Qb3 {[%emt 0:02:26]} Qe7 {[%emt 0:07:22]} 23. Nf4 {[%emt 0:07:43]} Bh6 {[%emt 0:03:17]} 24. Qe3 {[%emt 0:05:03]} a5 {[%emt 0:06:44]} 25. Nd4 {[%emt 0:06:25]} Ne5 {[%emt 0:06:57]} 26. Bxb7 {[%emt 0:01:47]} Rxc1 {[%emt 0:01:56]} 27. Qxc1 {[%emt 0:00:36]} Qxb7 {[%emt 0:00:31]} 28. Qc5 {[%emt 0:03:31]} Bxf4 {[%emt 0:00:44]} 29. Rxf4 {[%emt 0:00:31]} Nd3 {[%emt 0:00:10]} 30. Qd6 {[%emt 0:00:22]} Nxf4 {[%emt 0:00:10]} 31. Qxf4 {[%emt 0:00:01]} Qb6 {[%emt 0:00:22]} 32. Qf2 {[%emt 0:00:20]} Rd8 {[%emt 0:00:12]} 33. Qc2 0-1